bitfinex/quotes_ETHUSD_20241231
["timestamp","ask_amount","ask_price","bid_price","bid_amount"]
[1735618032571,1.798,3351.7,3351.2,4.18651367]
[1735618032735,0.5198,3351.8,3351.2,4.18651367]
[1735618032936,0.5198,3351.8,3351.3,1.24760704]
[1735618037286,0.5198,3351.8,3351.3,2.02180704]
[1735618039349,0.5198,3351.8,3351.3,0.7742]
[1735618052310,0.5198,3351.8,3350.7,0.7984]
[1735618052311,0.5198,3351.5,3350.7,0.7984]
[1735618052510,2.98384,3351.4,3350.7,0.7984]
[1735618052713,1.62836458,3351.4,3350.7,0.7984]
[1735618053012,1.28724698,3351.2,3350.6,1.24788402]
[1735618053169,3.50393,3351.1,3350.6,1.24788402]
[1735618053370,1.28724698,3351.0,3350.6,1.24788402]
[1735618054010,0.5198,3350.6,3350.0,7.74788402]
[1735618054308,0.4791497,3350.5,3350.0,1.24788402]
[1735618054515,4.79159698,3350.6,3350.0,1.24788402]
[1735618054886,0.5198,3350.6,3350.0,1.24788402]
[1735618055784,0.5198,3350.6,3349.8,3.15907301]
[1735618055785,0.5198,3350.6,3349.8,1.28724698]
[1735618058270,0.5198,3350.6,3349.7,3.78372]
[1735618058590,0.5198,3350.6,3349.8,1.028372]
[1735618059370,0.5198,3350.6,3349.7,3.78372]
[1735618060116,0.5198,3350.6,3349.7,0.7984]
[1735618060290,0.85894732,3350.6,3349.5,0.7857]
[1735618060495,0.5198,3350.5,3349.5,0.7857]
[1735618060815,0.68026492,3350.5,3349.2,8.53358402]
[1735618061015,2.98506,3350.1,3349.2,7.74788402]
[1735618061174,0.5198,3350.0,3349.2,7.74788402]
[1735618061371,0.5198,3350.0,3349.2,1.24788402]
[1735618062321,0.5198,3349.9,3349.2,1.24788402]
[1735618062617,3.50509,3349.8,3349.2,1.24788402]
[1735618062779,3.50509,3349.8,3348.8,3.0]
[1735618062978,0.5198,3349.8,3348.7,6.5]
[1735618063174,2.98544,3349.6,3348.7,6.5]
[1735618063418,0.5198,3349.5,3348.6,0.7857]
[1735618063644,0.5198,3349.5,3348.6,1.9376904]
[1735618064042,0.5198,3349.5,3348.6,0.7857]
[1735618064616,0.5198,3349.5,3348.4,2.98642]
[1735618064617,0.5198,3349.5,3348.4,3.77212]
[1735618064814,0.5198,3349.5,3348.4,0.7857]
[1735618065019,2.9856,3349.4,3348.4,0.7857]
[1735618065219,0.5198,3349.3,3348.4,0.7857]
[1735618065447,0.87034,3349.3,3348.4,0.7857]
[1735618066449,0.5198,3349.3,3348.4,0.7857]
[1735618067545,0.5198,3349.3,3348.5,6.5]
[1735618068357,0.5198,3349.3,3348.3,2.98658]
[1735618068507,0.8609176,3349.3,3348.2,6.5]
[1735618069104,3.8466276,3349.3,3348.2,6.5]
[1735618069309,0.41857749,3349.2,3348.2,6.5]
[1735618070123,3.8466276,3349.3,3348.2,6.5]
[1735618071163,3.8466276,3349.3,3348.2,9.48666]
[1735618072560,0.5198,3349.3,3348.2,9.21939064]
[1735618072757,0.5198,3349.3,3348.6,2.98631]
[1735618073059,0.5198,3349.3,3348.6,3.364561]
[1735618073463,0.5198,3349.3,3348.6,9.864561]
[1735618074058,0.5198,3349.3,3348.6,6.878251]
[1735618074219,0.5198,3349.3,3348.6,6.5]
[1735618074419,0.5198,3349.3,3348.4,2.98649]
[1735618076437,0.5198,3349.3,3348.4,9.48649]
[1735618076766,0.5198,3349.3,3348.6,2.98631]
[1735618077476,0.5198,3349.3,3348.4,9.48649]
[1735618077768,0.5198,3349.3,3348.5,1.30020806]
[1735618079350,0.5198,3349.2,3348.2,5.70605064]
[1735618080352,0.5198,3349.2,3348.2,12.20605064]
[1735618081082,0.5198,3349.1,3348.2,12.20605064]
[1735618081259,0.5198,3349.1,3348.2,9.48666]
[1735618081461,0.5198,3349.1,3348.2,2.98666]
[1735618081668,0.5198,3349.1,3348.2,4.58917506]
[1735618082174,0.5198,3349.1,3348.2,4.3219057]
[1735618082478,0.5198,3349.1,3348.4,2.98647]
[1735618083475,0.5198,3349.1,3348.4,9.48647]
[1735618085445,0.5198,3349.1,3348.4,2.98647]
[1735618085951,0.5198,3349.1,3348.2,4.58917506]
[1735618086151,0.5198,3349.1,3348.3,1.46276657]
[1735618086476,0.5198,3349.1,3348.3,4.44929657]
[1735618087340,0.5198,3349.1,3348.4,6.5]
[1735618093885,0.5198,3349.1,3348.6,2.98627]
[1735618097375,0.5198,3349.1,3348.6,9.48627]
[1735618097589,0.5198,3349.1,3348.7,1.024627]
[1735618102104,0.5198,3349.1,3348.5,0.76]
[1735618102254,0.5198,3349.1,3348.4,2.98647]
[1735618104821,0.5198,3349.1,3348.3,7.96276657]
[1735618104822,0.5198,3349.1,3348.3,6.5]
[1735618105303,0.5198,3349.1,3348.2,9.48664]
[1735618105795,0.5198,3349.0,3348.2,6.5]
[1735618106204,1.30924398,3349.0,3348.2,6.5]
[1735618106498,1.30924398,3349.0,3348.0,10.73472402]
[1735618106696,0.78944398,3349.0,3348.0,10.73472402]
[1735618106875,0.5198,3348.9,3348.0,10.73472402]
[1735618108369,0.5198,3348.9,3348.1,9.48675]
[1735618108567,1.88089706,3348.8,3348.1,12.08416101]
[1735618108771,1.88089706,3348.8,3348.1,13.98057812]
[1735618110014,1.88089706,3348.8,3348.2,1.0389644]
[1735618110373,1.88089706,3348.8,3348.2,2.32747934]
[1735618111369,1.88089706,3348.8,3348.2,1.28851494]
[1735618113001,1.88089706,3348.8,3348.2,4.27518494]
[1735618113775,2.40069706,3348.9,3348.2,4.27518494]
[1735618115415,2.40069706,3348.9,3348.4,1.28851494]
[1735618115616,1.88089706,3348.9,3348.7,2.98621]
[1735618115825,1.88089706,3348.9,3348.8,1.28851494]
[1735618116170,1.88089706,3348.9,3348.7,2.98621]
[1735618116375,1.88089706,3348.9,3348.7,9.48621]
[1735618117418,0.5198,3349.1,3348.7,9.48621]
[1735618119583,0.5198,3349.1,3348.7,6.5]
[1735618119784,0.24006971,3349.0,3348.7,6.5]
[1735618120375,0.24006971,3349.0,3348.4,2.98641]
[1735618120579,0.5198,3349.1,3348.4,2.98641]
[1735618120781,0.5198,3349.1,3348.3,1.24788402]
[1735618121276,0.5198,3349.1,3348.5,1.03801851]
[1735618122329,1.88089706,3348.9,3348.2,9.5]
[1735618122694,0.5198,3348.8,3348.2,9.48667]
[1735618123521,0.5198,3348.8,3348.2,2.98667]
[1735618125010,2.40069706,3348.8,3348.2,2.98667]
[1735618127020,0.5198,3348.8,3348.2,2.98667]
[1735618128300,1.08959858,3348.8,3348.2,2.98667]
[1735618129413,2.97049564,3348.8,3348.2,2.98667]
[1735618130339,1.08959858,3348.8,3348.2,2.98667]
[1735618135803,0.5198,3348.8,3348.1,2.7211]
[1735618136003,0.5198,3348.8,3348.4,2.98649]
[1735618138242,0.5198,3348.8,3348.4,4.27488302]
[1735618140560,0.5198,3348.8,3348.4,1.28839302]
[1735618140768,0.5198,3348.8,3348.5,2.98633]
[1735618141263,2.40069706,3349.1,3348.4,1.28839302]
[1735618141426,2.40069706,3349.1,3348.6,2.98632]
[1735618141769,3.23914765,3349.1,3348.6,2.98632]
[1735618142751,2.40069706,3349.1,3348.6,3.80352]
[1735618144239,0.5198,3349.1,3348.6,3.80352]
[1735618147047,0.5198,3349.1,3348.6,2.98632]
[1735618149158,0.5198,3349.1,3348.4,8.60559302]
[1735618149364,0.5198,3349.1,3348.5,2.98641]
[1735618150073,0.5198,3349.1,3348.6,2.98631]
[1735618151436,2.40069706,3349.1,3348.6,2.98631]
[1735618152760,0.5198,3349.1,3348.6,2.98631]
[1735618154687,2.40069706,3349.1,3348.6,2.98631]
[1735618156442,2.40069706,3349.1,3348.6,3.77531]
[1735618156644,1.88089706,3349.1,3349.0,1.28839302]
[1735618156839,1.88089706,3349.1,3349.0,4.27435302]
[1735618157046,1.88089706,3349.1,3349.0,5.06335302]
[1735618157447,1.88089706,3349.1,3349.0,11.56335302]
[1735618158185,1.88089706,3349.1,3349.0,10.27496]
[1735618158394,1.88089706,3349.1,3349.0,12.88946602]
[1735618158765,2.40069706,3349.7,3349.2,2.98578]
[1735618159063,2.40069706,3349.7,3349.0,11.56334302]
[1735618159494,2.40069706,3349.7,3349.0,5.06334302]
[1735618160097,0.5198,3349.7,3349.0,5.06334302]
[1735618160784,0.5198,3349.7,3349.2,2.98577]
[1735618160969,0.5198,3349.7,3349.0,0.789]
[1735618161171,0.5198,3349.7,3349.0,1.28839302]
[1735618162976,0.5198,3349.7,3349.0,4.27430302]
[1735618163478,0.5198,3349.7,3349.2,6.5]
[1735618164205,1.88089706,3349.9,3349.5,4.27386302]
[1735618165115,1.88089706,3349.9,3349.6,2.98541]
[1735618165264,1.88089706,3349.9,3349.4,2.98559]
[1735618165464,0.5198,3350.0,3349.3,2.08909302]
[1735618165465,0.5198,3350.0,3349.6,6.5]
[1735618165879,0.5198,3350.0,3349.6,9.48542]
[1735618166094,0.5198,3350.0,3349.7,1.0773813]
[1735618170404,0.5198,3350.0,3349.7,5.35110432]
[1735618170589,0.5198,3350.4,3349.7,2.36577432]
[1735618171216,1.88089706,3350.6,3350.3,1.28839302]
[1735618171420,1.88089706,3350.6,3350.4,2.98469]
[1735618171583,1.88089706,3350.6,3350.5,1.28839302]
[1735618171780,2.40069706,3350.9,3350.5,1.79368132]
[1735618171985,2.40069706,3350.9,3350.7,4.27282302]
[1735618172278,1.88089706,3350.9,3350.7,1.28839302]
[1735618172479,1.88089706,3350.9,3350.8,2.98436]
[1735618173639,1.88089706,3350.9,3350.8,4.1396153]
[1735618173783,0.5198,3351.4,3350.8,1.1552553]
[1735618173983,0.5198,3351.4,3350.9,4.27262302]
[1735618174436,0.5198,3351.4,3350.9,2.98423]
[1735618175386,0.5198,3351.4,3351.0,2.98418]
[1735618175591,0.5198,3351.4,3351.1,0.41394353]
[1735618176534,0.5198,3351.8,3351.2,0.7798]
[1735618176834,0.5198,3351.8,3351.2,3.76373]
[1735618177513,0.5198,3351.8,3351.2,10.26373]
[1735618177711,0.5198,3351.8,3351.2,11.33149735]
[1735618179134,0.5198,3351.8,3351.2,7.56776735]
[1735618179336,0.5198,3351.8,3351.1,0.41394353]
[1735618180534,0.5198,3351.8,3351.1,3.39802353]
[1735618180842,0.5198,3351.8,3351.2,2.98399]
[1735618182226,0.5198,3352.0,3351.6,2.98363]
[1735618186931,6.3237876,3352.7,3351.6,2.98363]
[1735618187137,0.5198,3352.5,3351.6,2.98363]
[1735618191951,0.5198,3352.5,3351.5,6.5]
[1735618192157,0.8609176,3352.5,3351.5,6.5]
[1735618192355,0.5198,3352.4,3351.5,6.5]
[1735618196259,0.5198,3352.3,3351.5,6.5]
[1735618196414,1.16092814,3352.3,3351.5,6.5]
[1735618197659,0.64112814,3352.3,3351.5,6.5]
[1735618197957,0.5198,3352.2,3351.5,6.5]
[1735618201421,0.5198,3352.2,3351.5,9.48372]
[1735618202965,0.5198,3352.2,3351.6,4.26974903]
[1735618203131,0.5198,3352.2,3351.7,1.0769749]
[1735618203337,0.5198,3352.8,3352.1,1.28610903]
[1735618203648,0.5198,3352.8,3352.0,2.98323]
[1735618205371,0.5198,3352.8,3352.0,6.5]
[1735618205662,0.5198,3352.6,3352.0,6.5]
[1735618205858,0.5198,3352.6,3352.0,7.76797139]
[1735618206059,0.5198,3352.6,3352.1,1.28610903]
[1735618207124,0.5198,3352.6,3352.0,10.75118139]
[1735618207437,0.5198,3352.6,3352.0,9.48321]
[1735618207763,0.5198,3352.6,3352.1,1.28610903]
[1735618209860,0.5198,3352.6,3352.0,9.48321]
[1735618213471,0.5198,3352.6,3352.0,6.5]
[1735618213634,0.5198,3352.6,3352.1,2.98317]
[1735618213835,0.5198,3352.6,3352.2,1.0769279]
[1735618216979,0.5198,3352.6,3352.2,4.0600079]
[1735618217176,0.5198,3352.6,3352.3,1.28610903]
[1735618217379,1.81319687,3352.9,3352.4,2.98291]
[1735618217586,1.25155017,3352.8,3352.6,2.98274]
[1735618217878,1.25155017,3352.8,3352.7,0.4268849]
[1735618218079,1.25155017,3352.8,3352.6,2.98274]
[1735618218635,1.25155017,3352.8,3352.4,2.98289]
[1735618219483,0.5616467,3352.9,3352.5,2.98284]
[1735618219781,0.5616467,3352.9,3352.6,1.0768949]
[1735618219990,0.5616467,3352.9,3352.3,9.48301]
[1735618220213,0.5616467,3352.9,3352.4,2.98292]
[1735618222278,0.5616467,3352.9,3352.3,7.78610903]
[1735618222490,0.5616467,3352.9,3352.5,2.98282]
[1735618223619,0.5616467,3352.9,3352.3,7.78610903]
[1735618223620,0.5616467,3352.9,3352.3,10.76910903]
[1735618223827,0.5616467,3352.9,3352.4,1.26656369]
[1735618224452,0.5616467,3352.9,3352.4,4.24946369]
[1735618228098,0.5616467,3352.9,3352.5,1.28610903]
[1735618228299,0.0418467,3352.9,3352.6,2.98267]
[1735618228837,0.0418467,3352.9,3352.7,4.26875903]
[1735618228994,0.0418467,3352.9,3352.8,0.5064659]
[1735618233450,0.0418467,3352.9,3352.8,3.4890459]
[1735618233724,0.0418467,3352.9,3352.8,7.2849459]
[1735618234310,0.0418467,3352.9,3352.8,14.3349459]
[1735618235686,0.0418467,3352.9,3352.8,15.62105493]
[1735618236134,6.7e-06,3352.9,3352.8,15.62105493]
[1735618236429,6.7e-06,3352.9,3352.8,17.04741049]
[1735618236925,1.88089706,3354.3,3354.2,2.98133]
[1735618237145,1.88089706,3354.3,3354.2,3.359053]
[1735618237361,1.88089706,3354.3,3354.2,9.859053]
[1735618237626,1.88089706,3354.9,3354.4,3.77704]
[1735618237796,1.88089706,3354.9,3354.8,2.9808]
[1735618238199,1.88089706,3354.9,3354.8,5.69326459]
[1735618238408,1.88089706,3354.9,3354.8,12.98916459]
[1735618238941,0.5198,3355.6,3355.2,2.98044]
[1735618239311,0.5198,3355.6,3355.2,0.298044]
[1735618239865,0.5198,3355.6,3355.3,2.98028]
[1735618240857,0.5198,3355.6,3355.2,6.798044]
[1735618241156,0.5198,3355.6,3355.2,6.5]
[1735618241330,0.5198,3355.6,3355.2,2.98039]
[1735618241536,0.5198,3355.6,3355.3,2.98035]
[1735618241692,0.5198,3355.6,3355.4,2.98024]
[1735618241892,0.5198,3356.0,3355.4,2.98024]
[1735618243322,0.5198,3356.0,3355.5,2.98013]
[1735618243652,0.625,3356.1,3355.6,0.7652]
[1735618244393,0.625,3356.1,3355.9,6.5]
[1735618244615,0.625,3356.1,3355.9,9.47973]
[1735618244821,0.625,3356.1,3356.0,2.97973]
[1735618246346,0.625,3356.1,3356.0,9.47973]
[1735618247013,0.625,3356.1,3356.0,6.5]
[1735618247539,0.625,3356.1,3356.0,2.71246459]
[1735618247892,0.625,3356.1,3356.0,2.97973]
[1735618248341,0.625,3356.1,3356.0,10.69894946]
[1735618248716,0.625,3356.1,3356.0,6.5]
[1735618249329,0.625,3356.1,3355.8,2.97987]
[1735618250339,0.625,3356.1,3355.7,9.21246459]
[1735618250655,0.625,3356.1,3355.7,6.5]
[1735618250804,0.5198,3356.0,3355.7,6.5]
[1735618251317,0.5198,3356.0,3355.5,3.0]
[1735618251832,0.5198,3356.0,3355.4,6.5]
[1735618252037,0.94900496,3356.0,3355.4,6.5]
[1735618252420,0.94900496,3356.0,3355.3,6.5]
[1735618253001,0.5198,3356.0,3355.3,9.48035]
[1735618254522,0.5198,3356.0,3355.3,6.5]
[1735618255405,0.5198,3356.0,3355.2,2.98041]
[1735618260951,0.5198,3356.0,3355.1,6.5]
[1735618261116,0.5198,3355.7,3355.1,6.5]
[1735618261310,0.5198,3355.7,3354.9,0.824]
[1735618261539,0.5198,3355.7,3355.2,2.98043]
[1735618261927,0.5198,3355.7,3355.0,2.98061]
[1735618262249,0.5198,3355.7,3355.1,2.98051]
[1735618262421,0.5198,3355.7,3355.3,2.98035]
[1735618263589,0.5198,3356.0,3355.5,2.98018]
[1735618264462,0.5198,3356.0,3355.6,2.98006]
[1735618265167,0.625,3356.1,3355.7,2.97998]
[1735618265367,0.625,3356.1,3355.4,6.5]
[1735618265368,0.625,3356.1,3356.0,2.97973]
[1735618267353,0.625,3356.1,3356.0,9.47973]
[1735618268763,0.625,3356.1,3356.0,12.47973]
[1735618269872,0.625,3356.1,3356.0,15.19219459]
[1735618270285,0.625,3356.1,3356.0,16.51099459]
[1735618270470,0.625,3356.1,3356.0,18.48988785]
[1735618271599,0.1677396,3356.2,3356.1,4.3146]
[1735618271899,9.6e-06,3356.2,3356.1,7.29424]
[1735618272296,0.5198,3357.4,3357.0,2.97883]
[1735618273198,0.5198,3357.4,3357.1,2.97874]
[1735618274875,0.5198,3358.1,3357.1,2.97874]
[1735618276189,0.5198,3358.1,3357.1,3.74334]
[1735618276699,0.31922844,3358.2,3358.1,2.97787]
[1735618276903,0.5198,3358.9,3358.0,2.97796]
[1735618277107,0.5198,3358.9,3358.1,3.00763516]
[1735618277264,0.5198,3358.9,3358.0,0.94550246]
[1735618277604,0.5198,3358.9,3358.4,2.9776]
[1735618277839,0.5198,3358.9,3358.6,2.9774]
[1735618278395,0.5198,3358.9,3358.5,6.5]
[1735618279466,0.5198,3358.9,3358.4,2.97755]
[1735618279665,0.5198,3358.9,3358.4,4.223092]
[1735618280769,0.5198,3358.9,3358.4,1.245542]
[1735618281207,0.5198,3359.1,3358.3,6.5]
[1735618281504,0.5198,3358.8,3357.7,9.47822]
[1735618282075,3.49705,3358.8,3357.7,9.47822]
[1735618282611,0.5198,3358.8,3357.7,6.5]
[1735618282835,0.5198,3358.5,3357.7,6.5]
[1735618283315,0.5198,3358.5,3357.8,2.97811]
[1735618283515,0.5198,3358.5,3357.9,3.00780821]
[1735618283718,0.5198,3359.1,3357.8,3.7788]
[1735618283895,0.5198,3359.1,3358.1,2.97783]
[1735618284094,0.5198,3359.1,3358.2,0.297783]
[1735618285519,0.5198,3359.1,3358.2,6.797783]
[1735618286320,0.5198,3359.1,3358.3,2.97768]
[1735618286713,0.5198,3359.1,3358.2,6.797783]
[1735618287407,0.5198,3359.1,3358.4,2.9776]
[1735618287787,0.5198,3359.1,3358.3,6.5]
[1735618288003,0.5198,3359.1,3358.3,7.1797783]
[1735618288528,0.5198,3359.1,3358.3,0.6797783]
[1735618288909,0.5198,3359.1,3358.2,6.5]
[1735618289131,0.5198,3359.0,3358.2,6.5]
[1735618289338,0.5198,3359.0,3358.0,9.47796]
[1735618290331,0.5198,3359.0,3358.0,2.97796]
[1735618290541,3.49702,3358.9,3357.9,6.5]
[1735618290740,0.5198,3358.7,3357.9,6.5]
[1735618291269,0.5198,3358.6,3357.9,6.5]
[1735618291407,0.5198,3358.6,3357.5,6.5]
[1735618291604,2.9776,3358.5,3357.5,6.5]
[1735618291848,0.29776,3358.4,3357.5,6.5]
[1735618292016,0.5198,3358.3,3357.5,9.47838]
[1735618292421,0.5198,3358.3,3357.5,6.5]
[1735618293612,0.5198,3358.3,3357.4,6.5]
[1735618296209,0.5198,3358.2,3357.4,6.5]
[1735618296464,2.97805,3357.9,3356.9,2.97893]
[1735618296680,0.5198,3357.8,3356.8,9.47901]
[1735618296877,3.0,3358.3,3357.3,0.7923]
[1735618297076,0.5198,3358.2,3357.2,2.97866]
[1735618297371,0.5198,3358.1,3357.0,7.2923]
[1735618297560,0.5198,3357.9,3357.0,6.5]
[1735618298101,0.5198,3357.7,3357.0,6.5]
[1735618298599,0.5198,3357.7,3356.7,6.5]
[1735618298732,0.5198,3357.6,3356.7,9.4791]
[1735618299599,0.5198,3357.6,3356.7,6.5]
[1735618300341,0.5198,3357.6,3356.8,2.97902]
[1735618300591,0.5198,3357.8,3356.9,3.75622]
[1735618300800,1.169568,3357.8,3356.9,0.7773]
[1735618300958,4.147708,3357.8,3356.7,9.47911]
[1735618301164,3.627908,3357.8,3356.7,9.47911]
[1735618301333,0.5198,3357.7,3356.7,9.47911]
[1735618304583,0.5198,3357.7,3356.7,2.97911]
[1735618304781,0.4147708,3357.6,3356.7,2.97911]
[1735618305344,0.5198,3357.5,3356.6,0.7773]
[1735618305538,0.5198,3357.5,3356.5,6.5]
[1735618305878,0.5198,3357.2,3356.5,6.5]
[1735618306067,0.349842,3357.1,3356.5,6.5]
[1735618306268,0.5198,3357.2,3356.6,0.7773]
[1735618306440,0.5198,3357.6,3356.6,3.7565]
[1735618306639,0.5198,3357.6,3356.7,2.97908]
[1735618307444,0.5198,3357.6,3356.8,6.5]
[1735618307644,1.44084846,3357.6,3356.8,6.5]
[1735618308295,4.41918846,3357.6,3356.8,6.5]
[1735618308594,4.41918846,3357.6,3356.6,7.2773]
[1735618309158,0.5198,3357.4,3356.6,6.5]
[1735618309368,0.5198,3357.4,3356.4,0.7773]
[1735618309697,0.5198,3357.4,3356.3,9.47943]
[1735618309698,0.5198,3357.2,3356.3,9.47943]
[1735618310400,0.5198,3357.2,3356.3,2.97943]
[1735618311562,2.97877,3357.1,3356.2,6.5]
[1735618311770,0.5198,3357.0,3356.2,6.5]
[1735618312392,0.5198,3356.9,3355.9,2.97981]
[1735618312805,2.97904,3356.8,3355.8,10.2773]
[1735618313007,0.297904,3356.7,3355.8,13.25719]
[1735618313212,0.5198,3356.7,3355.8,6.5]
[1735618313515,0.5198,3356.7,3356.0,6.5]
[1735618313674,0.5198,3356.7,3356.0,7.2773]
[1735618314490,0.5198,3356.7,3355.9,6.5]
[1735618314702,0.5198,3356.7,3356.0,4.02653]
[1735618317173,0.5198,3356.7,3356.0,7.00626]
[1735618323222,0.5198,3356.7,3356.0,4.00626]
[1735618324123,0.5198,3356.7,3356.0,1.02653]
[1735618324281,0.5198,3357.4,3356.5,2.97926]
[1735618324482,0.60132109,3357.3,3356.5,2.97926]
[1735618324688,0.5198,3357.4,3356.7,2.97909]
[1735618325776,0.5198,3357.4,3356.8,2.97902]
[1735618326484,0.5198,3357.4,3356.8,9.47902]
[1735618328143,1.8598978,3358.2,3357.4,0.7627]
[1735618328430,2.47986373,3358.3,3357.8,2.97812]
[1735618328431,1.8598978,3358.1,3357.8,2.97812]
[1735618329525,3.61962966,3358.4,3357.8,2.97812]
[1735618329526,0.5198,3358.4,3357.8,2.97812]
[1735618330304,0.5198,3358.4,3357.9,2.97804]
[1735618330505,0.5198,3358.4,3357.5,6.5]
[1735618330735,0.5198,3358.4,3357.6,1.024117]
[1735618330897,0.5198,3358.4,3357.8,2.97812]
[1735618331097,0.5198,3358.4,3357.6,4.002417]
[1735618331726,0.5198,3358.4,3357.7,2.97821]
[1735618334352,0.5198,3358.4,3357.7,9.47821]
[1735618334655,0.5198,3358.4,3357.7,10.6047127]
[1735618335210,0.5198,3358.4,3357.7,7.6265027]
[1735618335411,0.5198,3358.6,3357.6,6.5]
[1735618335612,0.5198,3358.3,3357.6,6.5]
[1735618336022,0.5198,3357.9,3357.6,6.5]
[1735618336430,0.5198,3357.9,3356.9,9.5]
[1735618336640,0.5198,3357.9,3357.0,1.324171]
[1735618337355,0.5198,3357.9,3357.0,7.824171]
[1735618338442,0.5198,3357.9,3357.0,4.303011]
[1735618339330,0.5198,3357.9,3357.0,10.803011]
[1735618340359,0.5198,3357.9,3357.0,4.303011]
[1735618340953,0.5198,3357.9,3356.9,9.5]
[1735618340954,0.5198,3357.8,3356.9,6.5]
[1735618341259,0.5198,3357.7,3356.9,6.5]
[1735618341442,0.5198,3357.7,3356.6,9.47918]
[1735618342034,0.5198,3357.7,3356.8,2.97902]
[1735618343322,0.5198,3357.7,3356.6,9.47918]
[1735618343543,0.58936036,3357.7,3356.6,11.101309]
[1735618343849,0.5198,3357.6,3356.6,8.122129]
[1735618344055,0.5198,3357.6,3356.7,2.9791]
[1735618351475,0.5198,3357.6,3356.8,2.979]
[1735618352533,0.5198,3357.6,3356.7,3.49706459]
[1735618352881,1.8598978,3357.9,3357.8,6.76274]
[1735618353179,1.8598978,3358.1,3357.9,3.0]
[1735618353329,1.8598978,3358.1,3358.0,2.97796]
[1735618353528,1.8598978,3358.1,3358.0,5.97796]
[1735618354161,0.5198,3359.0,3358.1,2.97787]
[1735618356352,0.5198,3359.0,3357.9,2.97804]
[1735618356769,2.71246459,3358.9,3357.9,2.97804]
[1735618356975,0.5198,3358.7,3357.7,9.47821]
[1735618357340,0.5198,3358.7,3357.7,2.97821]
[1735618358032,0.5198,3358.7,3357.5,7.2846]
[1735618358286,0.5198,3358.5,3357.5,9.47839]
[1735618358584,0.5198,3358.5,3357.5,2.97839]
[1735618362372,0.5198,3358.5,3357.2,6.5]
[1735618362584,0.5198,3358.3,3357.2,9.4786]
[1735618363489,0.5198,3358.3,3357.2,2.9786]
[1735618363666,0.5198,3358.1,3357.2,2.9786]
[1735618364493,0.5198,3358.1,3357.1,6.5]
[1735618365397,0.5198,3358.1,3357.1,2.97873]
[1735618365597,2.71246459,3358.0,3356.9,6.5]
[1735618365809,0.5198,3357.9,3356.9,6.5]
[1735618365954,0.32322646,3357.8,3356.9,6.5]
[1735618366155,0.5198,3357.7,3356.9,6.5]
[1735618366401,0.5198,3357.7,3356.8,2.97899]
[1735618369195,0.5198,3357.7,3356.5,6.5]
[1735618369505,0.5198,3357.7,3356.6,2.97919]
[1735618369704,0.5198,3357.5,3356.6,2.97919]
[1735618371002,3.23226459,3357.4,3356.4,9.47936]
[1735618371211,0.5198,3357.3,3356.4,9.47936]
[1735618371518,0.5198,3357.3,3356.4,2.9793]
[1735618371728,0.5198,3357.3,3356.5,2.97926]
[1735618371933,0.90999097,3357.3,3356.5,2.97926]
[1735618372431,0.5198,3357.2,3356.3,2.97945]
[1735618372634,0.5198,3357.2,3356.3,2.97946]
[1735618380373,0.5198,3357.2,3355.9,6.5]
[1735618380640,0.5198,3357.2,3356.6,2.97918]
[1735618381009,2.3796978,3357.2,3356.6,2.97918]
[1735618381210,2.3796978,3357.2,3356.4,0.7926]
[1735618381414,1.8598978,3357.2,3356.9,2.97886]
[1735618381614,1.8598978,3357.2,3357.1,2.97876]
[1735618381840,0.5198,3357.4,3357.2,2.97866]
[1735618382169,1.8598978,3357.6,3357.4,2.97848]
[1735618382751,2.99966373,3357.7,3357.4,2.97848]
[1735618382752,0.5198,3357.7,3357.4,2.97848]
[1735618383903,0.5198,3358.1,3357.4,1.740448]
[1735618384758,0.5198,3358.1,3357.7,2.97816]
[1735618386727,0.5198,3358.6,3357.7,2.97816]
[1735618390654,0.5198,3358.6,3357.4,3.77101]
[1735618390828,0.5198,3358.5,3357.3,6.5]
[1735618390982,0.80921624,3358.4,3357.3,9.47857]
[1735618391330,0.80921624,3358.4,3357.3,2.97857]
[1735618391527,0.80921624,3358.4,3357.2,7.2712]
[1735618391686,0.5198,3358.5,3357.9,2.978]
[1735618392224,2.3796978,3358.5,3357.8,0.8162]
[1735618392390,2.3796978,3358.5,3357.7,2.97821]
[1735618392589,2.3796978,3358.5,3357.7,4.007651]
[1735618393434,0.5198,3358.5,3357.7,4.007651]
[1735618394229,0.5198,3358.5,3357.5,6.5]
[1735618394442,3.49733,3358.5,3357.4,2.97841]
[1735618394642,0.5198,3358.5,3357.4,2.97841]
[1735618397830,0.5198,3358.5,3357.5,2.9784]
[1735618402582,0.5198,3358.5,3357.3,0.02978146]
[1735618402737,0.5198,3358.5,3357.8,2.97813]
[1735618405168,0.5198,3358.5,3357.5,6.74022]
[1735618405335,0.5198,3358.5,3357.6,2.97827]
[1735618410178,2.3796978,3358.5,3357.6,2.97827]
[1735618410477,0.5198,3358.2,3357.3,5.97849]
[1735618410641,0.5198,3358.2,3357.4,2.97844]
[1735618413776,0.5198,3358.2,3357.2,7.2619]
[1735618413976,0.5198,3358.2,3357.3,1.024068]
[1735618414680,0.5198,3358.2,3357.4,2.97842]
[1735618418485,0.2698,3358.2,3357.4,2.97842]
[1735618419286,0.2698,3358.2,3357.5,2.97839]
[1735618423585,2.1296978,3358.2,3357.5,2.97839]
[1735618424602,2.1296978,3358.2,3357.9,2.97802]
[1735618424762,1.8598978,3358.1,3357.9,2.97802]
[1735618425899,0.2698,3358.2,3357.9,2.97802]
[1735618426296,0.2698,3358.2,3357.5,1.1264358]
[1735618426496,0.2698,3358.2,3357.7,2.9782]
[1735618426701,0.2698,3358.2,3357.8,0.41046358]
[1735618427169,0.2698,3358.2,3357.5,1.1264358]